fUSD/lending_fUSD_20250119
["ID","MTS","AMOUNT","RATE_DAILY","PERIOD"]
[349574635,1737304239742,-500.0,0.00020819,2]
[349574636,1737304239751,-500.0,0.00020819,2]
[349574637,1737304239761,-500.0,0.00020819,2]
[349574638,1737304239770,-574.77,0.00020819,2]
[349574639,1737304239779,-500.0,0.00020819,2]
[349574640,1737304239789,-500.0,0.00020819,2]
[349574641,1737304239798,-500.0,0.00020819,2]
[349574642,1737304239808,-619.09078122,0.00020819,2]
[349574643,1737304239817,-500.0,0.00020819,2]
[349574644,1737304239826,-500.0,0.00020819,2]
[349574645,1737304239836,-500.0,0.00020819,2]
[349574646,1737304239845,-500.0,0.00020819,2]
[349574647,1737304239854,-546.14,0.00020819,2]
[349574648,1737304239864,-500.0,0.00020819,2]
[349574649,1737304239874,-500.0,0.00020819,2]
[349574650,1737304239885,-500.0,0.00020819,2]
[349574651,1737304239895,-520.38,0.00020819,2]
[349574652,1737304239905,-500.0,0.00020819,2]
[349574654,1737304239914,-500.0,0.00020819,2]
[349574655,1737304239924,-500.0,0.00020819,2]
[349574656,1737304239933,-500.0,0.00020819,2]
[349574657,1737304239942,-500.0,0.00020819,2]
[349574658,1737304239951,-500.0,0.00020819,2]
[349574659,1737304239960,-974.58,0.00020819,2]
[349574660,1737304239969,-500.0,0.00020819,2]
[349574661,1737304239978,-500.0,0.00020819,2]
[349574662,1737304239987,-500.0,0.00020819,2]
[349574663,1737304239998,-500.0,0.00020819,2]
[349574664,1737304240008,-500.0,0.00020819,2]
[349574665,1737304240017,-500.0,0.00020819,2]
[349574666,1737304240068,-500.0,0.00020819,2]
[349574667,1737304240079,-959.32,0.00020819,2]
[349574668,1737304240089,-1914.53,0.00020819,2]
[349574669,1737304240099,-500.0,0.00020819,2]
[349574670,1737304240108,-500.0,0.00020819,2]
[349574671,1737304240118,-449.32084076,0.00020819,2]
[349574672,1737304240130,-500.0,0.00020819,2]
[349574673,1737304240139,-1332.25,0.00020819,2]
[349574674,1737304240148,-219.51457482,0.00020819,2]
[349574675,1737304240158,-500.0,0.00020819,2]
[349574676,1737304240167,-221.44724737,0.00020819,2]
[349574677,1737304240177,-500.0,0.00020819,2]
[349574678,1737304240186,-500.0,0.0002082,2]
[349574679,1737304240195,-500.0,0.0002082,2]
[349574680,1737304240204,-500.0,0.0002082,2]
[349574681,1737304240213,-500.0,0.0002082,2]
[349574682,1737304240223,-1000.0,0.00020838,2]
[349574683,1737304240232,-20773.52929365,0.000209,7]
[349574684,1737304240241,-1000.0,0.000209,2]
[349574685,1737304240251,-1000.0,0.000209,2]
[349574686,1737304240260,-1000.0,0.000209,2]
[349574687,1737304240269,-1000.0,0.000209,2]
[349574688,1737304240278,-1000.0,0.000209,3]
[349574689,1737304240287,-1000.0,0.000209,3]
[349574690,1737304240296,-1000.0,0.000209,2]
[349574691,1737304240305,-1000.0,0.000209,2]
[349574692,1737304240314,-1143.0,0.000209,3]
[349574693,1737304240323,-1000.0,0.000209,2]
[349574694,1737304240332,-1002.0,0.000209,2]
[349574695,1737304240341,-1000.0,0.000209,2]
[349574696,1737304240352,-213.0707115,0.000209,2]
[349574697,1737304240361,-619.09078122,0.000209,2]
[349574698,1737304240371,-1471.25097398,0.000209,2]
[349574699,1737304240382,-200.0,0.000209,7]
[349574700,1737304240393,-150.0137927,0.000209,3]
[349574701,1737304240402,-971.801081,0.000209,2]
[349574702,1737304240411,-4623.92140479,0.000209,2]
[349574703,1737304240534,-536.09511421,0.000209,2]
[349574704,1737304240545,-448.49998,0.000209,2]
[349574705,1737304240556,-1602.41867164,0.000209,2]
[349574706,1737304240566,-500.0,0.00020973,2]
[349574707,1737304240575,-216.727777,0.00020993,2]
[349574708,1737304240584,-500.0,0.00020993,2]
[349574709,1737304240593,-365.36535845,0.00020993,2]
[349574710,1737304240602,-520.92,0.00020993,2]
[349574711,1737304240612,-500.0,0.00020993,2]
[349574712,1737304240621,-868.88,0.00020993,2]
[349574713,1737304240632,-500.0,0.00020993,2]
[349574714,1737304240641,-747.56,0.00020993,2]
[349574715,1737304240651,-284.20980724,0.00020993,2]
[349574716,1737304240662,-468.29019276,0.00020993,2]
[349574717,1737304240672,-465.315771,0.00020993,2]
[349574718,1737304240682,-198.25796882,0.00020993,2]
[349574719,1737304240694,-301.74203118,0.00020993,2]
[349574720,1737304240704,-949.29,0.00020993,2]
[349574721,1737304240714,-500.0,0.00020993,2]
[349574722,1737304240724,-858.3,0.00020993,2]
[349574723,1737304240733,-500.0,0.00020993,2]
[349574724,1737304240743,-500.0,0.00020993,2]
[349574725,1737304240753,-326.1,0.00020993,2]
[349574726,1737304240762,-1234.62,0.00020993,2]
[349574727,1737304240772,-500.0,0.00020993,2]
[349574728,1737304240782,-817.19,0.00020993,2]
[349574729,1737304240792,-500.0,0.00020993,2]
[349574730,1737304240802,-1845.79,0.00020993,2]
[349574732,1737304240812,-500.0,0.00020993,2]
[349574733,1737304240822,-500.0,0.00020993,2]
[349574735,1737304240832,-500.0,0.00020993,2]
[349574737,1737304240841,-1268.47,0.00020993,2]
[349574738,1737304240852,-615.49,0.00020993,2]
[349574739,1737304240862,-500.0,0.00020993,2]
[349574740,1737304240871,-500.0,0.00020993,2]
[349574741,1737304240883,-500.0,0.00020993,2]
[349574742,1737304240893,-500.0,0.00020993,2]
[349574743,1737304240903,-1827.32,0.00020993,2]
[349574744,1737304240913,-500.0,0.00020993,2]
[349574745,1737304240923,-503.95,0.00020993,2]
[349574746,1737304240934,-500.0,0.00020993,2]
[349574747,1737304240945,-614.01,0.00020993,2]
[349574748,1737304240954,-500.0,0.00020993,2]
[349574749,1737304240965,-500.0,0.00020993,2]
[349574750,1737304240975,-500.0,0.00020993,2]
[349574751,1737304240985,-819.67,0.00020993,2]
[349574752,1737304240995,-1180.63,0.00020993,2]
[349574753,1737304241005,-500.0,0.00020993,2]
[349574754,1737304241015,-389.0637473,0.00020993,2]
[349574755,1737304241025,-500.0,0.00020993,2]
[349574756,1737304241035,-500.0,0.00020993,2]
[349574757,1737304241044,-780.82,0.00020993,2]
[349574758,1737304241055,-500.0,0.00020993,2]
[349574759,1737304241066,-500.0,0.00020993,2]
[349574760,1737304241076,-740.32,0.00020993,2]
[349574761,1737304241086,-397.79,0.00020993,2]
[349574762,1737304241096,-500.0,0.00020993,2]
[349574763,1737304241107,-500.0,0.00020993,2]
[349574764,1737304241116,-747.74,0.00020993,2]
[349574765,1737304241126,-500.0,0.00020993,2]
[349574766,1737304241138,-500.0,0.00020993,2]
[349574767,1737304241148,-971.0,0.00020993,2]
[349574768,1737304241158,-500.0,0.00020999,2]
[349574769,1737304241169,-500.0,0.00020999,2]
[349574770,1737304241179,-500.0,0.00020999,2]
[349574771,1737304241190,-241.62025523,0.00020999,2]
[349574772,1737304241201,-236223.10297706,0.00021,2]
[349574773,1737304241218,-5012.13738009,0.00021,2]
[349574774,1737304241230,-47616.74843799,0.00021,2]
[349574775,1737304241242,-6196.27978025,0.00021,2]
[349574776,1737304241255,-78714.33790481,0.00021,2]
[349574777,1737304241267,-38064.53314274,0.00021,2]
[349574778,1737304241277,-25135.46685726,0.00021,15]
[349574779,1737304241289,-4199.3624832,0.00021,15]
[349574780,1737304241350,-500.0,0.00019897,2]
[349574781,1737304241359,-179.92879675,0.00019897,2]
[349574782,1737304241371,-320.07120325,0.00019897,2]
[349574783,1737304241385,-729.22879675,0.00021,15]
[349574784,1737304241398,-804.03,0.00021,15]
[349574785,1737304241412,-1000.05129845,0.00021,15]
[349574786,1737304241427,-12656.51253525,0.00021,15]
[349574787,1737304241443,-33669.48746475,0.00021,15]
[349574788,1737304241455,-435.38038272,0.00021,15]
[349574789,1737304241471,-611.31000002,0.00021,15]
[349574790,1737304241486,-6315.3454475,0.00021,15]
[349574791,1737304241498,-916.85211978,0.00021,15]
[349574792,1737304241510,-3670.78509988,0.00021,15]
[349574793,1737304241521,-338.075,0.00021,15]
[349574794,1737304241533,-449.56697763,0.00021,15]
[349574795,1737304241545,-157977.53377827,0.00021,15]
[349574796,1737304241558,-8706.80558528,0.00021,15]
[349574797,1737304241569,-19123.17349961,0.00021,15]
[349574798,1737304241582,-101262.3265685,0.00021,15]
[349574799,1737304241615,-809.91442546,0.00021,15]
[349574800,1737304241627,-596.0138533,0.00021,15]
[349574817,1737304242958,-500.0,0.00019897,2]
[349574818,1737304242972,-441.34039931,0.00019897,2]
[349574819,1737304242986,-58.65960069,0.00019897,2]
[349574820,1737304242997,-456.3104998,0.00020171,2]
[349574821,1737304243010,-43.6895002,0.00020171,2]
[349574822,1737304243023,-30553.30181978,0.00021,15]
[349574823,1737304243039,-457537.58879199,0.00021,15]
[349574824,1737304243089,-36369.80713449,0.00021,15]
[349574825,1737304243191,-509.67,0.00021,15]
[349574826,1737304243206,-1016.9322247,0.00021,15]
[349574827,1737304243219,-29770.75021101,0.00021,15]
[349574828,1737304243232,-681.94000002,0.00021,15]
[349574829,1737304243248,-157439.99243141,0.00021,15]
[349575084,1737304245816,-500.0,0.00019897,2]
[349575087,1737304245839,-346.07679219,0.00019897,2]
[349575091,1737304245854,-155.19393517,0.00019897,2]
[349575094,1737304245866,-500.0,0.00019897,2]
[349575099,1737304245879,-500.0,0.00019897,2]
[349575102,1737304245894,-500.0,0.00019897,2]
[349575105,1737304245906,-500.0,0.00019897,2]
[349575108,1737304245917,-500.0,0.00019897,2]
[349575111,1737304245929,-444.36403858,0.00020171,2]
[349575132,1737304246066,-55.63596142,0.00020171,2]
[349575134,1737304246076,-500.0,0.00020171,2]
[349575136,1737304246087,-649.72,0.00020171,2]
[349575139,1737304246098,-500.0,0.00020445,2]
[349575141,1737304246110,-500.0,0.00020445,2]
[349575143,1737304246122,-500.0,0.00020719,2]
[349575145,1737304246135,-500.0,0.00020719,2]
[349575147,1737304246145,-422.75701841,0.000209,2]
[349575149,1737304246155,-500.0,0.00020993,2]
[349575151,1737304246165,-500.0,0.00020993,2]
[349575154,1737304246176,-574.08402017,0.00021,15]
[349575156,1737304246190,-528.00371815,0.00021,15]
[349575158,1737304246203,-805.59350001,0.00021,15]
[349575162,1737304246225,-500.0,0.00020171,2]
[349575164,1737304246235,-500.0,0.00020171,2]
[349575166,1737304246245,-732.1551496,0.00021,15]
[349575168,1737304246257,-791.97500162,0.00021,15]
[349575171,1737304246270,-42766.0439032,0.00021,15]
[349575777,1737304395607,152.15,0.00010137,2]
[349575781,1737304774266,4097.74,0.00019462,30]
[349575790,1737305098344,500.0,0.00023,120]
[349575791,1737305132162,-229.70870666,0.00015,2]
[349575792,1737305275933,185.56,0.00012329,2]
[349575798,1737305353040,168.24,0.00010137,2]
[349575800,1737305360112,-320.29129334,0.00015,2]
[349575801,1737305360132,-11705.95219425,0.00016,3]
[349575802,1737305360160,-45364.04712,0.00016,3]
[349575803,1737305360184,-4930.00068575,0.00016,3]
[349575804,1737305360206,-888.17920304,0.000167,2]
[349575805,1737305360227,-151.67272517,0.000167,2]
[349575806,1737305360248,-744.03823346,0.000168,2]
[349575807,1737305360268,-150.0,0.00016986,2]
[349575808,1737305360288,-600.0,0.00017,2]
[349575809,1737305360310,-13865.05952589,0.00017,4]
[349575810,1737305373115,-48134.94047411,0.00017,4]
[349575811,1737305373137,-43063.31170589,0.00017,2]
[349575812,1737305373166,-7685.395298,0.00017,2]
[349575818,1737305432035,-925.04534492,0.00017,2]
[349575890,1737305438032,-44216.98771742,0.00017,2]
[349575891,1737305438041,-4679.62,0.00017492,2]
[349575892,1737305438050,-678.56,0.00017567,2]
[349575893,1737305438060,-208.52001568,0.000179,2]
[349575894,1737305438070,-154.23,0.00018986,2]
[349575895,1737305438079,-650.0,0.00019,2]
[349575896,1737305438088,-300.0,0.00019072,2]
[349575897,1737305438098,-250.0,0.00019135,2]
[349575898,1737305438108,-164.56,0.00019166,2]
[349575899,1737305438118,-1257.52226687,0.00019179,2]
[349575900,1737305438137,-242.47773313,0.00019179,2]
[349575901,1737305438146,-250.0,0.00019198,2]
[349575902,1737305438156,-269.47,0.00019224,2]
[349575903,1737305438165,-715.71,0.00019224,2]
[349575904,1737305438174,-1000.0,0.00019243,2]
[349575905,1737305438183,-2147.91,0.00019245,2]
[349575906,1737305438192,-152.24,0.00019338,2]
[349575907,1737305438201,-152.24,0.00019347,2]
[349575908,1737305438210,-152.24,0.00019356,2]
[349575909,1737305438220,-200.0,0.00019356,2]
[349575910,1737305438229,-152.24,0.00019365,2]
[349575911,1737305438238,-152.24,0.00019373,2]
[349575912,1737305438248,-152.24,0.00019382,2]
[349575913,1737305438257,-329.45,0.00019383,2]
[349575914,1737305438267,-152.24,0.00019391,2]
[349575915,1737305438276,-152.24,0.000194,2]
[349575916,1737305438286,-152.24,0.00019409,2]
[349575917,1737305438295,-152.24,0.00019417,2]
[349575918,1737305438304,-152.24,0.00019426,2]
[349575919,1737305438313,-152.24,0.00019435,2]
[349575921,1737305438321,-250.0,0.0001953,2]
[349575923,1737305438331,-420.0032,0.00019692,2]
[349575925,1737305438340,-500.0,0.00019796,2]
[349575927,1737305438349,-500.0,0.00019796,2]
[349575929,1737305438358,-683.83,0.00019796,2]
[349575931,1737305438368,-509.58399716,0.00019796,2]
[349575933,1737305438377,-500.0,0.00019796,2]
[349575935,1737305438387,-500.0,0.00019796,2]
[349575937,1737305438395,-678.56,0.00019831,2]
[349575939,1737305438405,-185.56,0.00019863,2]
[349575941,1737305438414,-672.9241,0.00019897,2]
[349575943,1737305438423,-500.0,0.00019897,2]
[349575945,1737305438432,-592.14127904,0.00019897,2]
[349575947,1737305438441,-500.0,0.00019897,2]
[349575949,1737305438450,-428.72177922,0.00019897,2]
[349575951,1737305438459,-500.0,0.00019897,2]
[349575954,1737305438468,-500.0,0.00019897,2]
[349575956,1737305438477,-500.0,0.00019897,2]
[349575958,1737305438486,-500.0,0.00019897,2]
[349575960,1737305438495,-500.0,0.00019897,2]
[349575962,1737305438504,-500.0,0.00019897,2]
[349575964,1737305438512,-500.0,0.00019897,2]
[349575966,1737305438522,-500.0,0.00019897,2]
[349575968,1737305438531,-500.0,0.00019897,2]
[349575970,1737305438540,-509.62132702,0.00019897,2]
[349575972,1737305438548,-1129.139,0.00019897,2]
[349575974,1737305438558,-500.0,0.00019897,2]
[349575976,1737305438567,-633.29102945,0.00019897,2]
[349575978,1737305438576,-500.0,0.00019897,2]
[349575979,1737305438585,-500.0,0.00019897,2]
[349575981,1737305438594,-500.0,0.00019897,2]
[349575983,1737305438603,-500.0,0.00019897,2]
[349575984,1737305438612,-500.0,0.00019897,2]
[349575987,1737305438622,-500.0,0.00019897,2]
[349575988,1737305438631,-500.0,0.00019897,2]
[349575991,1737305438641,-500.0,0.00019897,2]
[349575992,1737305438649,-648.59741008,0.00019897,2]
[349575993,1737305438658,-500.0,0.00019897,2]
[349575994,1737305438667,-502.21213634,0.00019897,2]
[349575995,1737305438676,-268.13557863,0.00019897,2]
[349575996,1737305438685,-500.0,0.00019897,2]
[349575997,1737305438698,-570.28812613,0.00019897,2]
[349575998,1737305438707,-500.0,0.00019897,2]
[349575999,1737305438717,-526.24956452,0.00019897,2]
[349576000,1737305438726,-500.0,0.00019897,2]
[349576001,1737305438735,-500.0,0.00019897,2]
[349576002,1737305438745,-500.0,0.00019897,2]
[349576003,1737305438754,-500.0,0.00019897,2]
[349576004,1737305438764,-500.0,0.00019897,2]
[349576005,1737305438775,-500.0,0.00019897,2]
[349576006,1737305438784,-500.0,0.00019897,2]
[349576007,1737305438793,-500.0,0.00019897,2]
[349576008,1737305438802,-500.0,0.00019897,2]
[349576009,1737305438812,-500.0,0.00019897,2]
[349576010,1737305438822,-500.0,0.00019897,2]
[349576011,1737305438831,-500.0,0.00019897,2]
[349576012,1737305438840,-500.0,0.00019897,2]
[349576013,1737305438849,-500.0,0.00019897,2]
[349576014,1737305438858,-500.0,0.00019897,2]
[349576015,1737305438868,-500.0,0.00019897,2]
[349576016,1737305438877,-500.0,0.00019897,2]
[349576017,1737305438887,-255.90348934,0.00019897,2]
[349576018,1737305438895,-500.0,0.00019897,2]
[349576019,1737305438906,-500.0,0.00019897,2]
[349576020,1737305438915,-500.0,0.00019897,2]
[349576021,1737305438924,-500.0,0.00019897,2]
[349576022,1737305438934,-500.0,0.00019897,2]
[349576023,1737305438943,-500.0,0.00019897,2]
[349576024,1737305438952,-500.0,0.00019897,2]
[349576025,1737305438963,-500.0,0.00019897,2]
[349576026,1737305438973,-507.59600473,0.00019897,2]
[349576027,1737305438983,-632.82828534,0.00019897,2]
[349576028,1737305438993,-500.0,0.00019897,2]
[349576029,1737305439003,-500.0,0.00019897,2]
[349576030,1737305439014,-500.0,0.00019897,2]
[349576031,1737305439024,-1057.95310572,0.00019941,2]
[349576032,1737305439035,-8747.0,0.00019961,2]
[349576033,1737305439045,-150.74,0.0001999,2]
[349576034,1737305439056,-150.74,0.0001999,2]
[349576035,1737305439067,-150.74,0.0001999,2]
[349576036,1737305439078,-150.74,0.0001999,2]
[349576037,1737305439089,-150.74,0.0001999,2]
[349576038,1737305439099,-150.74,0.0001999,2]
[349576039,1737305439110,-150.74,0.0001999,2]
[349576040,1737305439123,-150.74,0.0001999,2]
[349576041,1737305439135,-150.74,0.0001999,2]
[349576042,1737305439145,-150.74,0.0001999,2]
[349576043,1737305439156,-150.74,0.0001999,2]
[349576044,1737305439167,-150.74,0.0001999,2]
[349576045,1737305439178,-150.74,0.0001999,2]
[349576046,1737305439189,-150.74,0.0001999,2]
[349576047,1737305439200,-150.74,0.0001999,2]
[349576048,1737305439210,-150.74,0.0001999,2]
[349576049,1737305439220,-150.74,0.0001999,2]
[349576050,1737305439230,-150.74,0.0001999,2]
[349576051,1737305439240,-150.74,0.0001999,2]
[349576052,1737305439250,-150.74,0.0001999,2]
[349576053,1737305439260,-150.74,0.0001999,2]
[349576054,1737305439270,-150.74,0.0001999,2]
[349576055,1737305439279,-150.74,0.0001999,2]
[349576056,1737305439289,-150.74,0.0001999,2]
[349576057,1737305439299,-150.74,0.0001999,2]
[349576058,1737305439308,-150.74,0.0001999,2]
[349576059,1737305439317,-150.74,0.0001999,2]
[349576060,1737305439326,-102251.89595015,0.0002,2]
[349576061,1737305439346,-4681.97233234,0.0002,2]
[349576062,1737305439449,-344.48564603,0.0002,2]
[349576065,1737305440157,-1193.50062015,0.0002,2]
[349576066,1737305440214,-7479.10925807,0.0002,2]
[349576067,1737305440430,-338.42099327,0.0002,2]
[349576068,1737305440442,-257.415,0.0002,2]
[349576092,1737305443101,-500.0,0.00019796,2]
[349576094,1737305443111,-351.04999999,0.0002,2]
[349576095,1737305443122,-653.550005,0.0002,2]
[349576096,1737305443134,-976.48499705,0.0002,2]
[349576105,1737305443210,-613.11523112,0.0002,2]
[349576107,1737305443221,-10470.0,0.0002,2]
[349576109,1737305443318,-17666.0,0.0002,2]
[349576110,1737305443330,-1043.6637697,0.0002,2]
[349576111,1737305443375,-26494.0,0.0002,2]
[349576112,1737305443431,-267.29,0.0002,2]
[349576128,1737305445973,-346.98461568,0.00019796,2]
[349576129,1737305445983,-500.0,0.00019796,2]
[349576130,1737305445992,-1604.64064635,0.0002,2]
[349576131,1737305446030,-36084.42385412,0.0002,2]
[349576132,1737305446144,-4317.9263335,0.0002,2]
[349576133,1737305446152,-243.0,0.0002,2]
[349576134,1737305446162,-5310.33081914,0.0002,4]
[349576135,1737305446171,-600.27624474,0.0002,2]
[349576136,1737305446180,-35683.85033401,0.0002,15]
[349576137,1737305446192,-1953.80454962,0.0002,15]
[349576138,1737305446203,-37473.94388456,0.0002,15]
[349576139,1737305446214,-15630.62992127,0.0002,15]
[349576140,1737305446266,-1469.08251533,0.0002,15]
[349576141,1737305446281,-1570.17257304,0.0002,15]
[349576142,1737305446292,-1657.41392378,0.0002,15]
[349576143,1737305446303,-8458.10239317,0.0002,15]
[349576144,1737305446315,-1048.6200008,0.0002,15]
[349576145,1737305446326,-1373.14585864,0.0002,15]
[349576146,1737305446338,-14949.985,0.0002,15]
[349576147,1737305446349,-32291.9602722,0.0002,15]
[349576148,1737305446360,-568.63601979,0.0002,15]
[349576149,1737305446371,-4969.7645,0.0002,15]
[349576150,1737305446384,-2751.2364225,0.0002,15]
[349576151,1737305446395,-2452.0,0.0002,15]
[349576152,1737305446407,-522.74628185,0.0002,15]
[349576153,1737305446419,-6122.345432,0.0002,15]
[349576154,1737305621385,3892.85,0.00019456,30]
[349576170,1737306344136,-375.94334004,0.00015,2]
[349576171,1737306353093,-174.05665996,0.00015,2]
[349576172,1737306353114,-600.0,0.00017,2]
[349576173,1737306353137,-322.15141229,0.00017305,2]
[349576174,1737306428121,-221.12029532,0.00017305,2]
[349576175,1737306531559,3706.04,0.00018868,30]
[349576176,1737306556956,185.56,0.00012329,2]
[349576179,1737306632177,-176.92829239,0.00017305,2]
[349576180,1737306632186,-237.0,0.00018,2]
[349576181,1737306632196,-23139.757967,0.00018471,2]
[349576182,1737306632205,-989.59,0.00018564,2]
[349576183,1737306632215,-693.39,0.00018598,2]
[349576184,1737306632224,-49644.82039511,0.00018628,2]
[349576185,1737306632233,-250.0,0.00018628,2]
[349576186,1737306632243,-278.70200057,0.0001864,2]
[349576187,1737306632254,-1671.29799943,0.0001864,2]
[349576188,1737306632263,-175.58051057,0.0001866,2]
[349576189,1737306632274,-74.41948943,0.0001866,2]
[349576190,1737306632284,-215.57,0.00018688,2]
[349576191,1737306632293,-2212.51051057,0.00018794,2]
[349576192,1737306632309,-787.48948943,0.00018794,2]
[349576193,1737306632318,-172.28,0.00018798,2]
[349576194,1737306632328,-193.65708555,0.00018898,2]
[349576195,1737306632340,-6.34291445,0.00018898,2]
[349576196,1737306632349,-200.0,0.00018955,2]
[349576197,1737306632358,-250.0,0.00018982,2]
[349576198,1737306632370,-236.0,0.00019,2]
[349576199,1737306632380,-650.0,0.00019,2]
[349576200,1737306632390,-196.3,0.00019053,2]
[349576201,1737306632399,-1000.0,0.00019078,2]
[349576202,1737306632408,-10305.39601256,0.00019132,2]
[349576203,1737306632420,-13594.60398744,0.00019132,2]
[349576204,1737306632429,-200.0,0.0001935,2]
[349576205,1737306632439,-1134.90994568,0.00019361,2]
[349576206,1737306632448,-1938.12868888,0.00019361,2]
[349576207,1737306632458,-1938.12868888,0.00019361,2]
[349576208,1737306632467,-1669.82081777,0.00019366,2]
[349576209,1737306632477,-970.07847553,0.00019368,2]
[349576210,1737306632486,-875.1,0.0001937,2]
[349576211,1737306632496,-675.86,0.0001937,2]
[349576212,1737306632505,-1962.6,0.0001937,2]
[349576213,1737306632515,-1938.12868888,0.00019374,2]
[349576214,1737306632525,-970.07847553,0.00019383,2]
[349576215,1737306632536,-200.0,0.00019383,2]
[349576216,1737306632546,-1938.12868888,0.00019389,2]
[349576217,1737306632555,-200.0,0.00019393,2]
[349576218,1737306632564,-1134.90994568,0.00019396,2]
[349576219,1737306632573,-200.0,0.000194,2]
[349576220,1737306632583,-200.0,0.00019404,2]
[349576221,1737306632592,-1134.90994568,0.00019406,2]
[349576222,1737306632602,-970.07847553,0.0001941,2]
[349576223,1737306632611,-1938.12868888,0.0001941,2]
[349576224,1737306632623,-1134.90994568,0.00019415,2]
[349576225,1737306632633,-970.07847553,0.00019415,2]
[349576226,1737306632642,-1938.12868888,0.00019426,2]
[349576227,1737306632652,-200.0,0.0001943,2]
[349576228,1737306632661,-200.0,0.00019432,2]
[349576229,1737306632670,-1669.82081777,0.00019434,2]
[349576230,1737306632680,-1938.12868888,0.00019434,2]
[349576231,1737306632689,-1938.12868888,0.00019439,2]
[349576232,1737306632698,-200.0,0.00019439,2]
[349576233,1737306632708,-200.0,0.00019441,2]
[349576234,1737306632717,-970.07847553,0.00019444,2]
[349576235,1737306632726,-1669.82081777,0.00019445,2]
[349576236,1737306632736,-200.0,0.00019447,2]
[349576237,1737306632746,-1669.82081777,0.00019449,2]
[349576239,1737306632755,-1938.12868888,0.00019454,2]
[349576241,1737306632766,-200.0,0.00019459,2]
[349576242,1737306632775,-1134.90994568,0.0001946,2]
[349576244,1737306632784,-1669.82081777,0.00019461,2]
[349576246,1737306632793,-200.0,0.00019464,2]
[349576248,1737306632802,-744.03823345,0.00019469,2]
[349576250,1737306632812,-200.0,0.00019486,2]
[349576252,1737306632821,-1938.12868888,0.0001949,2]
[349576254,1737306632830,-1330.774,0.00019569,2]
[349576256,1737306632839,-720.2,0.00019569,2]
[349576258,1737306632849,-152.203,0.00019569,2]
[349576260,1737306632858,-208.35,0.0001966,2]
[349576262,1737306632870,-189.67,0.00019696,2]
[349576264,1737306632879,-300.0,0.00019795,2]
[349576266,1737306632889,-500.0,0.00019796,2]
[349576268,1737306632898,-500.0,0.00019796,2]
[349576270,1737306632908,-500.0,0.00019796,2]
[349576272,1737306632917,-500.0,0.00019796,2]
[349576274,1737306632926,-500.0,0.00019796,2]
[349576275,1737306632935,-500.0,0.00019796,2]
[349576277,1737306632944,-183.91683419,0.00019796,2]
[349576279,1737306632953,-500.0,0.00019796,2]
[349576281,1737306632963,-500.0,0.00019796,2]
[349576283,1737306632972,-500.0,0.00019796,2]
[349576285,1737306632981,-500.0,0.00019796,2]
[349576287,1737306632991,-507.43775725,0.00019796,2]
[349576289,1737306633000,-500.0,0.00019796,2]
[349576291,1737306633009,-500.0,0.00019796,2]
[349576293,1737306633018,-500.0,0.00019796,2]
[349576295,1737306633027,-500.0,0.00019796,2]
[349576297,1737306633037,-500.0,0.00019796,2]
[349576299,1737306633050,-500.0,0.00019796,2]
[349576301,1737306633059,-484.45109359,0.00019796,2]
[349576303,1737306633069,-321.7072501,0.00019796,2]